{"text_format":"1","workbook":"xlsx","n_sheets":3,"sheets":["Source Data","Qualification structure","Standard Reference Table"],"not_rendered":{"charts":0,"images":0,"macros":1,"external_links":0,"defined_names":7,"comments":0,"pivot_tables":0},"unopened":[],"bounds":{"document_bytes":16777216,"sheet_cells":100000,"rows_first":2000,"rows_last":500,"rows_between":2000,"halvings":0,"cell_chars":16384,"cell_head_chars":4096},"cells_cut":0,"cells_raw":0,"read":"whole","date_system":"1900"}

{"sheet":"Source Data","index":0,"n_rows":217,"n_cols":6,"rows_kept":217,"cut":false,"hidden":true,"merged":[]}
["Route"," ","Standard Name / Options","T-Level"]
["Construction","Additional Content","Additional Content","16-19 & Adult",null,"Construction"]
["Construction","ST0022","Asbestos analyst and surveyor","16-19 & Adult",null,"Digital"]
["Construction","ST0052","Highways electrician or service operative","16-19 & Adult",null,"Education_and_Early_Years"]
["Construction","ST0061","Building services engineering service and maintenance engineer","16-19 & Adult",null,"Engineering_and_Manufacturing"]
["Construction","ST0062","Building services engineering craftsperson","16-19 & Adult",null,"Health_and_science"]
["Construction","ST0063","Building services engineering technician 2022","16-19 & Adult"]
["Construction","ST0064","Building services engineering ductwork craftsperson","16-19 & Adult"]
["Construction","ST0091","Civil engineering technician","Adult Only"]
["Construction","ST0152","Installation electrician and maintenance electrician","Adult Only"]
["Construction","ST0155","Gas engineering operative","Adult Only"]
["Construction","ST0161","Junior energy manager","16-19 & Adult"]
["Construction","ST0162","Engineering construction pipefitter","16-19 & Adult"]
["Construction","ST0170","Facilities management supervisor","16-19 & Adult"]
["Construction","ST0189","Fire emergency and security systems technician","Adult Only"]
["Construction","ST0189 FEL","Fire emergency and security systems technician - Fire and emergency lighting","Adult Only"]
["Construction","ST0189 FIR","Fire emergency and security systems technician - Fire","Adult Only"]
["Construction","ST0189 FSE","Fire emergency and security systems technician - Fire and Security","Adult Only"]
["Construction","ST0189 SEC","Fire emergency and security systems technician - Security","Adult Only"]
["Construction","ST0263 AAJ","Advanced carpentry and joinery - Advanced Architectural Joiner","Adult Only"]
["Construction","ST0266","Digital engineering technician","Adult Only"]
["Construction","ST0303","Plumbing and domestic heating technician","Adult Only"]
["Construction","ST0303 ENV","Plumbing and domestic heating technician - Environmental Technologies","Adult Only"]
["Construction","ST0303 GAS","Plumbing and domestic heating technician - Fossil Fuel - Natural Gas","Adult Only"]
["Construction","ST0303 OIL","Plumbing and domestic heating technician - Fossil Fuel - Oil","Adult Only"]
["Construction","ST0303 SOL","Plumbing and domestic heating technician - Fossil Fuel - Solid Fuel","Adult Only"]
["Construction","ST0322","Refrigeration air conditioning and heat pump engineering technician","Adult Only"]
["Construction","ST0332","Surveying technician","Adult Only"]
["Construction","ST0332 BUS","Surveying technician - Building surveying","Adult Only"]
["Construction","ST0332 CPM","Surveying technician - Consultant (professional) project management","Adult Only"]
["Construction","ST0332 CPS","Surveying technician - Commercial property surveying","Adult Only"]
["Construction","ST0332 CQS","Surveying technician - Consultant (professional) quantity surveying","Adult Only"]
["Construction","ST0332 LSU","Surveying technician - Land surveying (including rural, minerals and waste management and planning and development)","Adult Only"]
["Construction","ST0332 RPS","Surveying technician - Residential property surveying","Adult Only"]
["Construction","ST0332 VSU","Surveying technician - Valuation surveying","Adult Only"]
["Construction","ST0336","Transport planning technician","16-19 & Adult"]
["Construction","ST0391","Building services engineering ventilation hygiene technician","Adult Only"]
["Construction","ST0414 BRI","Military engineering construction technician - Bricklayer & Concreter","16-19 & Adult"]
["Construction","ST0414 BUI","Military engineering construction technician - Building & Structural Finisher","16-19 & Adult"]
["Construction","ST0414 CAR","Military engineering construction technician - Carpenter & Joiner","16-19 & Adult"]
["Construction","ST0414 PLA","Military engineering construction technician - Plant Operator & Mechanic","16-19 & Adult"]
["Construction","ST0414 PLU","Military engineering construction technician - Plumbing & Heating Engineer","16-19 & Adult"]
["Construction","ST0433","Engineering construction erector rigger","16-19 & Adult"]
["Construction","ST0433 ECE","Engineering construction erector rigger - Engineering construction erector","16-19 & Adult"]
["Construction","ST0433 ECR","Engineering construction erector rigger - Engineering construction rigger","16-19 & Adult"]
["Construction","ST0464","Smart home technician","16-19 & Adult"]
["Construction","ST0491","Geospatial survey technician","Adult Only"]
["Construction","ST0521","Industrial thermal insulation technician","16-19 & Adult"]
["Construction","ST0614","Fall protection technician","16-19 & Adult"]
["Construction","ST0741","Landscape technician","16-19 & Adult"]
["Construction","ST0802","Curtain wall installer","16-19 & Adult"]
["Construction","ST0960","Construction support technician","16-19 & Adult"]
["Construction","ST1017","Domestic electrician","16-19 & Adult"]
["Digital",null,"Additional Content","16-19 & Adult"]
["Digital","ST0120 DAS","Digital support technician - Digital Service Technician (DST)","Adult Only"]
["Digital","ST0120 DAT","Digital support technician - Digital Applications Technician (DAT)","Adult Only"]
["Digital","ST0128","Software development technician","Adult Only"]
["Digital","ST0485","Network cable installer","Adult Only"]
["Digital","ST0505 HWT","IT solutions technician - IT Software Solutions Technician","16-19 & Adult"]
["Digital","ST0505 SWT","IT solutions technician - IT Hardware Solutions Technician","16-19 & Adult"]
["Digital","ST0757","Radio network technician","16-19 & Adult"]
["Digital","ST0795","Data technician","Adult Only"]
["Digital","ST0865","Cyber security technician","Adult Only"]
["Digital","ST0973 ","Information communications technician","Adult Only"]
["Digital","ST0973 DCT","Information communications technician - Digital Communications Technician","Adult Only"]
["Digital","ST0973 NETT","Information communications technician - Network Technician","Adult Only"]
["Digital","ST0973 SUPT","Information communications technician - Support Technician","Adult Only"]
["Education_and_Early_Years",null,"Additional Content","16-19 & Adult"]
["Education_and_Early_Years","ST0135","Early years educator","Adult Only"]
["Education_and_Early_Years","ST0454","Teaching assistant","Adult Only"]
["Education_and_Early_Years","ST0666","Education technician (he assistant technician and simulation-based technician)","16-19 & Adult"]
["Education_and_Early_Years","ST0666 HEAT","Education technician (he assistant technician and simulation-based technician) - Higher education assistant technician","16-19 & Adult"]
["Education_and_Early_Years","ST0666 SET","Education technician (he assistant technician and simulation-based technician) - Simulation-based education technician","16-19 & Adult"]
["Education_and_Early_Years","ST1380","Learning and skills assessor","16-19 & Adult"]
["Engineering_and_Manufacturing",null,"Additional Content","16-19 & Adult"]
["Engineering_and_Manufacturing","ST0015","Survival equipment fitter","16-19 & Adult"]
["Engineering_and_Manufacturing","ST0031","Automotive glazing technician","16-19 & Adult"]
["Engineering_and_Manufacturing","ST0033","Motor vehicle service and maintenance technician (light vehicle)","Adult Only"]
["Engineering_and_Manufacturing","ST0059","Boatbuilder","Adult Only"]
["Engineering_and_Manufacturing","ST0067","Bus and coach engineering technician","16-19 & Adult"]
["Engineering_and_Manufacturing","ST0067 COA","Bus and coach engineering technician - Coach Builder","16-19 & Adult"]
["Engineering_and_Manufacturing","ST0067 ELC","Bus and coach engineering technician - Electrical","16-19 & Adult"]
["Engineering_and_Manufacturing","ST0067 MEC","Bus and coach engineering technician - Mechanical","16-19 & Adult"]
["Engineering_and_Manufacturing","ST0067 MECL","Bus and coach engineering technician - Mechelec","16-19 & Adult"]
["Engineering_and_Manufacturing","ST0068","Heavy vehicle service and maintenance technician","16-19 & Adult"]
["Engineering_and_Manufacturing","ST0094","Composites technician","Adult Only"]
["Engineering_and_Manufacturing","ST0150","Electrical, electronic product service and installation engineer","Adult Only"]
["Engineering_and_Manufacturing","ST0154","Maintenance and operations engineering technician","Adult Only"]
["Engineering_and_Manufacturing","ST0154 CIT","Maintenance and operations engineering technician - Control and Instrumentation Technician","Adult Only"]
["Engineering_and_Manufacturing","ST0154 ELEC","Maintenance and operations engineering technician - Electrical Technician","16-19 & Adult"]
["Engineering_and_Manufacturing","ST0154 EMEC","Maintenance and operations engineering technician - Electromechanical Technician","Adult Only"]
["Engineering_and_Manufacturing","ST0154 ESP","Maintenance and operations engineering technician - Electrical System and Process Control Technician","Adult Only"]
["Engineering_and_Manufacturing","ST0154 MEC","Maintenance and operations engineering technician - Mechanical Technician","Adult Only"]
["Engineering_and_Manufacturing","ST0154 POT","Maintenance and operations engineering technician - Plant Operations Technician","16-19 & Adult"]
["Engineering_and_Manufacturing","ST0154 WTT","Maintenance and operations engineering technician - Wind Turbine Technician","16-19 & Adult"]
["Engineering_and_Manufacturing","ST0156","Power network craftsperson","16-19 & Adult"]
["Engineering_and_Manufacturing","ST0156 OL","Power network craftsperson - Overhead Lines","16-19 & Adult"]
["Engineering_and_Manufacturing","ST0156 SF","Power network craftsperson - Substation Fitting","16-19 & Adult"]
["Engineering_and_Manufacturing","ST0156 UC","Power network craftsperson - Underground Cables","16-19 & Adult"]
["Engineering_and_Manufacturing","ST0159 ELEC","Utilities engineering technician - Electrical","Adult Only"]
["Engineering_and_Manufacturing","ST0159 INS","Utilities engineering technician - Instrumentation Control & Automation","Adult Only"]
["Engineering_and_Manufacturing","ST0159 MEC","Utilities engineering technician - Mechanical","Adult Only"]
["Engineering_and_Manufacturing","ST0163","Project controls technician","16-19 & Adult"]
["Engineering_and_Manufacturing","ST0195","Food and drink maintenance engineer","16-19 & Adult"]
["Engineering_and_Manufacturing","ST0196","Food and drink technical operator","Adult Only"]
["Engineering_and_Manufacturing","ST0205","Gas network craftsperson","16-19 & Adult"]
["Engineering_and_Manufacturing","ST0205 ELEC","Gas network craftsperson - Network Maintenance Craftsperson (Electrical & Instrumentation)","16-19 & Adult"]
["Engineering_and_Manufacturing","ST0205 EMER","Gas network craftsperson - Emergency Response Craftsperson","16-19 & Adult"]
["Engineering_and_Manufacturing","ST0205 PIPE","Gas network craftsperson - Network Pipelines Maintenance Craftsperson","16-19 & Adult"]
["Engineering_and_Manufacturing","ST0205 PRE","Gas network craftsperson - Network Maintenance Craftsperson (Pressure Management)","16-19 & Adult"]
["Engineering_and_Manufacturing","ST0249","Science industry maintenance technician","16-19 & Adult"]
["Engineering_and_Manufacturing","ST0250","Science manufacturing technician","Adult Only"]
["Engineering_and_Manufacturing","ST0252","Lift and escalator electromechanic","16-19 & Adult"]
["Engineering_and_Manufacturing","ST0252 EIN","Lift and escalator electromechanic - Escalator and Moving Walk Installation","16-19 & Adult"]
["Engineering_and_Manufacturing","ST0252 ERP","Lift and escalator electromechanic - Escalator and Moving Walk Service and Repair","16-19 & Adult"]
["Engineering_and_Manufacturing","ST0252 LIN","Lift and escalator electromechanic - Lift Installation","16-19 & Adult"]
["Engineering_and_Manufacturing","ST0252 LRE","Lift and escalator electromechanic - Lift Service and Repair","16-19 & Adult"]
["Engineering_and_Manufacturing","ST0288","Non-destructive testing engineering technician","Adult Only"]
["Engineering_and_Manufacturing","ST0296","Papermaker","16-19 & Adult"]
["Engineering_and_Manufacturing","ST0315","Railway engineering design technician","16-19 & Adult"]
["Engineering_and_Manufacturing","ST0318","Rail engineering technician","16-19 & Adult"]
["Engineering_and_Manufacturing","ST0318  SIG","Rail engineering technician - Overhead Lines","16-19 & Adult"]
["Engineering_and_Manufacturing","ST0318 ELEC","Rail engineering technician - Electrification","16-19 & Adult"]
["Engineering_and_Manufacturing","ST0318 OL","Rail engineering technician - Signalling","16-19 & Adult"]
["Engineering_and_Manufacturing","ST0318 RAIL","Rail engineering technician - Rail Systems","16-19 & Adult"]
["Engineering_and_Manufacturing","ST0318 ROLL","Rail engineering technician - Traction & Rolling Stock","16-19 & Adult"]
["Engineering_and_Manufacturing","ST0318 TEL","Rail engineering technician - Telecoms","16-19 & Adult"]
["Engineering_and_Manufacturing","ST0318 TRA","Rail engineering technician - Track","16-19 & Adult"]
["Engineering_and_Manufacturing","ST0352","Accident repair technician","Adult Only"]
["Engineering_and_Manufacturing","ST0364","Marine engineer","16-19 & Adult"]
["Engineering_and_Manufacturing","ST0376","Motorcycle technician (repair and maintenance)","16-19 & Adult"]
["Engineering_and_Manufacturing","ST0387","Lift truck and powered access engineering technician","16-19 & Adult"]
["Engineering_and_Manufacturing","ST0403","Vehicle damage panel technician","16-19 & Adult"]
["Engineering_and_Manufacturing","ST0405","Vehicle damage mechanical, electrical and trim (MET) technician","16-19 & Adult"]
["Engineering_and_Manufacturing","ST0432","Engineering fitter","Adult Only"]
["Engineering_and_Manufacturing","ST0448","Vehicle damage paint technician","16-19 & Adult"]
["Engineering_and_Manufacturing","ST0457","Engineering technician","Adult Only"]
["Engineering_and_Manufacturing","ST0457","Engineering technician - Airworthiness, Planning, Quality & Safety Technician","16-19 & Adult"]
["Engineering_and_Manufacturing","ST0457","Engineering technician - Maritime Electrical Fitter","Adult Only"]
["Engineering_and_Manufacturing","ST0457","Engineering technician - Maritime Mechanical Fitter","Adult Only"]
["Engineering_and_Manufacturing","ST0457","Engineering technician - Maritime Fabricator","16-19 & Adult"]
["Engineering_and_Manufacturing","ST0457","Engineering technician - Maritime Pipeworker","16-19 & Adult"]
["Engineering_and_Manufacturing","ST0457","Engineering technician - Mechatronics Maintenance Technician","16-19 & Adult"]
["Engineering_and_Manufacturing","ST0457","Engineering technician - Product Design & Development Technician","16-19 & Adult"]
["Engineering_and_Manufacturing","ST0457","Engineering technician - Toolmaker & Tool & Die Maintenance Technician","Adult Only"]
["Engineering_and_Manufacturing","ST0457","Engineering technician - Technical Support Technician","16-19 & Adult"]
["Engineering_and_Manufacturing","ST0457 AELE","Engineering technician - Aerospace Manufacturing Electrical / Mechanical & Systems Fitter","Adult Only"]
["Engineering_and_Manufacturing","ST0457 AFIT","Engineering technician - Aerospace Manufacturing Fitter","Adult Only"]
["Engineering_and_Manufacturing","ST0457 AIR","Engineering technician - Aircraft Maintenance Fitter/Technician (Fixed & Rotary Wing)","16-19 & Adult"]
["Engineering_and_Manufacturing","ST0541","Fashion and textiles pattern cutter","16-19 & Adult"]
["Engineering_and_Manufacturing","ST0607","Metal fabricator","Adult Only"]
["Engineering_and_Manufacturing","ST0654","Fitted furniture design technician","16-19 & Adult"]
["Engineering_and_Manufacturing","ST0655","Advanced furniture CNC technician","16-19 & Adult"]
["Engineering_and_Manufacturing","ST0656","Advanced upholsterer","16-19 & Adult"]
["Engineering_and_Manufacturing","ST0656 MOD","Advanced upholsterer - Modern Upholsterer","16-19 & Adult"]
["Engineering_and_Manufacturing","ST0656 TRA","Advanced upholsterer - Traditional Upholsterer","16-19 & Adult"]
["Engineering_and_Manufacturing","ST0671","Construction equipment maintenance technician","16-19 & Adult"]
["Engineering_and_Manufacturing","ST0752","Drinks dispense technician","16-19 & Adult"]
["Engineering_and_Manufacturing","ST0791","Commercial catering equipment technician","16-19 & Adult"]
["Engineering_and_Manufacturing","ST0793","New furniture product developer","16-19 & Adult"]
["Engineering_and_Manufacturing","ST0808","Marine electrician","16-19 & Adult"]
["Engineering_and_Manufacturing","ST0817","Compressed air and vacuum technician","16-19 & Adult"]
["Engineering_and_Manufacturing","ST0824","Signage technician","16-19 & Adult"]
["Engineering_and_Manufacturing","ST0851","Pipe welder","Adult Only"]
["Engineering_and_Manufacturing","ST0852","Plate welder","Adult Only"]
["Engineering_and_Manufacturing","ST0872","Lifting equipment technician","16-19 & Adult"]
["Engineering_and_Manufacturing","ST0910","Knitted product manufacturing technician","16-19 & Adult"]
["Engineering_and_Manufacturing","ST0950","Healthcare engineering specialist technician","16-19 & Adult"]
["Engineering_and_Manufacturing","ST0950 EST","Healthcare engineering specialist technician - Healthcare estates technician","16-19 & Adult"]
["Engineering_and_Manufacturing","ST0950 MED","Healthcare engineering specialist technician - Healthcare medical devices technician","16-19 & Adult"]
["Engineering_and_Manufacturing","ST0963","Surface finisher","16-19 & Adult"]
["Engineering_and_Manufacturing","ST0963 AUTO","Surface finisher - Automotive Surface Finisher","16-19 & Adult"]
["Engineering_and_Manufacturing","ST0963 AVA","Surface finisher - Aviation Surface Finisher","16-19 & Adult"]
["Engineering_and_Manufacturing","ST0963 MAR","Surface finisher - Marine Surface Finisher","16-19 & Adult"]
["Engineering_and_Manufacturing","ST1291","Water industry treatment process technician","16-19 & Adult"]
["Engineering_and_Manufacturing","ST1291 WST","Water industry treatment process technician - Wastewater treatment process technician","16-19 & Adult"]
["Engineering_and_Manufacturing","ST1291 WTR","Water industry treatment process technician - Water treatment process technician","16-19 & Adult"]
["Engineering_and_Manufacturing","ST1292","Water industry network technician","16-19 & Adult"]
["Engineering_and_Manufacturing","ST1292 LEAK","Water industry network technician - Water leakage technician","16-19 & Adult"]
["Engineering_and_Manufacturing","ST1292 WST","Water industry network technician - Wastewater network technician","16-19 & Adult"]
["Engineering_and_Manufacturing","ST1292 WTR","Water industry network technician - Water distribution network technician","16-19 & Adult"]
["Engineering_and_Manufacturing","ST1305","Machining technician","16-19 & Adult"]
["Health_and_science",null,"Additional Content","16-19 & Adult"]
["Health_and_science","ST0058","Animal technologist","16-19 & Adult"]
["Health_and_science","ST0093","Community sport and health officer","16-19 & Adult"]
["Health_and_science","ST0113","Dental nurse (integrated)","Adult Only"]
["Health_and_science","ST0198","Food technologist","Adult Only"]
["Health_and_science","ST0217","Senior healthcare support worker","Adult Only"]
["Health_and_science","ST0217 ANS","Senior healthcare support worker - Adult Nursing Support","Adult Only"]
["Health_and_science","ST0217 CYPS","Senior healthcare support worker - Children and Young People Support","Adult Only"]
["Health_and_science","ST0217 MAT","Senior healthcare support worker - Maternity Allied Health Profession Therapy Support","Adult Only"]
["Health_and_science","ST0217 MATS","Senior healthcare support worker - Maternity Support","Adult Only"]
["Health_and_science","ST0217 MHS","Senior healthcare support worker - Mental Health Support","Adult Only"]
["Health_and_science","ST0217 THS","Senior healthcare support worker - Theatre Support","Adult Only"]
["Health_and_science","ST0248","Laboratory technician","Adult Only"]
["Health_and_science","ST0282","Metrology technician","Adult Only"]
["Health_and_science","ST0300","Pharmacy technician (integrated)","16-19 & Adult"]
["Health_and_science","ST0302","Personal trainer","16-19 & Adult"]
["Health_and_science","ST0479","Outdoor activity instructor","16-19 & Adult"]
["Health_and_science","ST0524","Sporting excellence professional","16-19 & Adult"]
["Health_and_science","ST0524 CRI","Sporting excellence professional - Cricket","16-19 & Adult"]
["Health_and_science","ST0524 EQU","Sporting excellence professional - Equestrian","16-19 & Adult"]
["Health_and_science","ST0524 FTB","Sporting excellence professional - Football","16-19 & Adult"]
["Health_and_science","ST0524 RLE","Sporting excellence professional - Rugby League","16-19 & Adult"]
["Health_and_science","ST0524 RUN","Sporting excellence professional - Rugby Union","16-19 & Adult"]
["Health_and_science","ST0535","Clinical coder","16-19 & Adult"]
["Health_and_science","ST0627","Ambulance support worker (emergency, urgent and non-urgent)","16-19 & Adult"]
["Health_and_science","ST0632","Prosthetic and orthotic technician","16-19 & Adult"]
["Health_and_science","ST0889","Mortuary technician","16-19 & Adult"]
["Health_and_science","ST0889 APT","Mortuary technician - Anatomical pathology technologist","16-19 & Adult"]
["Health_and_science","ST0889 FMT","Mortuary technician - Funeral mortuary technician","16-19 & Adult"]
["Health_and_science","ST0896","Peer worker","16-19 & Adult"]
["Health_and_science","ST0958","Community health and wellbeing worker","16-19 & Adult"]
["Health_and_science","ST1377","Optical assistant 2022","16-19 & Adult"]
["Health_and_science","ST1377 CLA","Optical assistant 2022 - Contact Lens Assistant","16-19 & Adult"]
["Health_and_science","ST1377 DOA","Optical assistant 2022 - Domiciliary Optical Assistant","16-19 & Adult"]
["Health_and_science","ST1377 SCA","Optical assistant 2022 - Screening Assistant","16-19 & Adult"]

{"sheet":"Qualification structure","index":1,"n_rows":20,"n_cols":12,"rows_kept":20,"cut":false,"hidden":false,"merged":[[8,0,8,2],[18,10,18,11],[10,10,10,11]]}
[null,"START HERE"]
[null,"Awarding body/Applicant:"]
[null,"Please type the name of awarding body/applicant here"]
[null,"Qualification name:"]
[null,"Please type your qualification title here"]
[null,"Programme title if applicable:"]
[null,"Please type the programme title here"]
[]
["PLEASE LIST ALL THE UNITS IN THE QUALIFICATION"]
["Note: If a unit/unit content is not aligned/mapped to an occupational standard it is classed as additional content (Column D)"]
[null,null,null,null,null,null,null,null,null,null,"FOR OCCUPATIONAL ENTRY EXTEND SUBMISSIONS ONLY"]
["Unit Code","Unit Title","Mandatory, Optional \nor Extended Content","Mapped to Standard(s) or additional content \n\n(Multiple dropdown - Select all that apply)","GLH","Unit Level","Delivery Method \n\n(Multiple dropdown - Select all that apply)","Assessment Method \neg: Professional discussion, MCQ Paper, practical assessment","Does the assessment for this unit demonstrate holistic competencies?","Have you submitted a SAM for this unit?","Does this unit contain any transferrable generic skills or transferrable employability skills","Does this unit contain any introductory sector knowledge"]
["EXAMPLE001","Introduction to equipment and maintenance","Option","Additional Content, ST0962 Press Operative",20,"Level 2","Classroom, Workshop","Practical Assessment","No","No","No","Yes"]
["EXAMPLE002","Concept of principles and development","Core","ST0962 ALL",10,"Level 2","Workplace Simulation","Multiple-choice question paper","Yes","Yes","N/A","N/A"]
["EXAMPLE003","Preparing for an interview","Extended Content","Additional Content, ST0962 Pre-Press Operative",10,"Level 2","Classroom","Practical Assessment","No","Yes","Yes","Yes"]
[]
[]
[]
[null,null,null,null,null,null,null,null,null,null,"FOR OCCUPATIONAL ENTRY EXTEND SUBMISSIONS ONLY"]
["Unit Code","Unit Title","Mandatory/Option","Mapped to Standard(s) or additional content \n\n(Multiple dropdown - Select all that apply)","GLH","Unit Level","Delivery Method \n\n(Multiple dropdown - Select all that apply)","Assessment Method \neg: Professional discussion, MCQ Paper, practical assessment","Does the assessment for this unit demonstrate holistic competencies?","Have you submitted a SAM for this unit?","Does this unit contain any transferrable generic skills or transferrable employability skills","Does this unit contain any introductory sector knowledge"]

{"sheet":"Standard Reference Table","index":2,"n_rows":209,"n_cols":10,"rows_kept":209,"cut":false,"hidden":false,"merged":[]}
["Route","Reference","Name","Core and options","Options","Status","Approved for Delivery Date","Retired date","Withdrawn date","Level"]
["Applicable across all routes","Additional Content","If a module/unit content is not aligned or mapped to an occupational standard it is classed as additional content ","A",null,"N/A","N/A","N/A","N/A"]
["Construction and the built environment","ST0651","Lightning protection operative","No",null,"Approved for delivery","2021-11-12",null,null,2]
["Construction and the built environment","ST0750","Mastic asphalter","No",null,"Approved for delivery","2021-05-17",null,null,2]
["Engineering and manufacturing","ST0899","Material cutter","No",null,"Approved for delivery","2020-08-24",null,null,2]
["Engineering and manufacturing","ST0805","Construction equipment maintenance mechanic","No",null,"Approved for delivery","2020-08-07",null,null,2]
["Construction and the built environment","ST0736","Construction plant operative","No",null,"Approved for delivery","2020-07-10",null,null,2]
["Construction and the built environment","ST0832","Telecoms field operative","No",null,"Approved for delivery","2020-05-13",null,null,2]
["Education and early years","ST0888","Early years practitioner","No",null,"Approved for delivery","2020-03-26",null,null,2]
["Health and science","ST0843","Healthcare cleaning operative","No",null,"Approved for delivery","2020-02-03",null,null,2]
["Engineering and manufacturing","ST0744","Fenestration fabricator","No",null,"Approved for delivery","2019-09-27",null,null,2]
["Construction and the built environment","ST0743","Fenestration installer","No",null,"Approved for delivery","2019-09-27",null,null,2]
["Engineering and manufacturing","ST0531","Wood product manufacturing operative","No",null,"Approved for delivery","2019-07-03",null,null,2]
["Construction and the built environment","ST0693","Road surfacing operative","No",null,"Approved for delivery","2019-07-03",null,null,2]
["Construction and the built environment","ST0617","Facilities services operative","No",null,"Approved for delivery","2019-04-11",null,null,2]
["Construction and the built environment","ST0669","Tramway construction operative","No",null,"Approved for delivery","2019-03-28",null,null,2]
["Construction and the built environment","ST0616","Wireless communications rigger","No",null,"Approved for delivery","2019-03-22",null,null,2]
["Health and science","ST0390","Leisure team member","No",null,"Approved for delivery","2019-02-18",null,null,2]
["Health and science","ST0299","Pharmacy services assistant","No",null,"Approved for delivery","2018-12-18",null,null,2]
["Construction and the built environment","ST0513","Groundworker","No",null,"Approved for delivery","2018-12-07",null,null,2]
["Construction and the built environment","ST0269","Hire controller (plant, tools and equipment)","No",null,"Approved for delivery","2018-12-04",null,null,2]
["Construction and the built environment","ST0368","Wall and floor tiler","No",null,"Approved for delivery","2018-11-23",null,null,2]
["Construction and the built environment","ST0169","Structural steelwork erector","No",null,"Approved for delivery","2018-11-22",null,null,2]
["Engineering and manufacturing","ST0511","Mineral and construction product sampling and testing operations","No",null,"Approved for delivery","2018-10-17",null,null,2]
["Engineering and manufacturing","ST0498","Specialist tyre operative","No",null,"Approved for delivery","2018-10-05",null,null,2]
["Engineering and manufacturing","ST0276","Maritime mechanical and electrical mechanic","No",null,"Approved for delivery","2018-10-05",null,null,2]
["Construction and the built environment","ST0099","Structural steelwork fabricator","No",null,"Approved for delivery","2018-09-27",null,null,2]
["Construction and the built environment","ST0463","Industrial coatings applicator","No",null,"Approved for delivery","2018-09-27",null,null,2]
["Construction and the built environment","ST0373","Powered pedestrian door installer and service engineer","No",null,"Approved for delivery","2018-09-24",null,null,2]
["Construction and the built environment","ST0366","Fencing installer","No",null,"Approved for delivery","2018-09-24",null,null,2]
["Construction and the built environment","ST0615","Demolition operative","No",null,"Approved for delivery","2018-09-12",null,null,2]
["Engineering and manufacturing","ST0622","Bicycle mechanic","No",null,"Approved for delivery","2018-08-22",null,null,2]
["Construction and the built environment","ST0053","Highways maintenance skilled operative","No",null,"Approved for delivery","2018-08-10",null,null,2]
["Construction and the built environment","ST0461","Formworker","No",null,"Approved for delivery","2018-08-08",null,null,2]
["Engineering and manufacturing","ST0145","Mineral processing weighbridge operator","No",null,"Approved for delivery","2018-08-08",null,null,2]
["Engineering and manufacturing","ST0549","Sewing machinist","No",null,"Approved for delivery","2018-08-08",null,null,2]
["Construction and the built environment","ST0268","Piling attendant","No",null,"Approved for delivery","2018-06-22",null,null,2]
["Engineering and manufacturing","ST0604","Commercial laundry operative","No",null,"Approved for delivery","2018-06-22",null,null,2]
["Construction and the built environment","ST0295","Painter and decorator","No",null,"Approved for delivery","2018-06-22",null,null,2]
["Construction and the built environment","ST0095","Bricklayer","No",null,"Approved for delivery","2018-06-22",null,null,2]
["Engineering and manufacturing","ST0202","Footwear manufacturer","No",null,"Approved for delivery","2018-06-21",null,null,2]
["Engineering and manufacturing","ST0499","Autocare technician","No",null,"Approved for delivery","2018-05-24",null,null,2]
["Engineering and manufacturing","ST0418","Abattoir worker","No",null,"Approved for delivery","2018-05-08",null,null,2]
["Construction and the built environment","ST0359","Scaffolder","No",null,"Approved for delivery","2018-05-08",null,null,2]
["Engineering and manufacturing","ST0458","Textile manufacturing operative","No",null,"Approved for delivery","2018-05-03",null,null,2]
["Engineering and manufacturing","ST0422","Science manufacturing process operative","No",null,"Approved for delivery","2018-02-27",null,null,2]
["Construction and the built environment","ST0333","Commercial thermal insulation operative","No",null,"Approved for delivery","2018-02-21",null,null,2]
["Construction and the built environment","ST0375","Tunnelling operative","No",null,"Approved for delivery","2018-01-26",null,null,2]
["Health and science","ST0478","Community activator coach","No",null,"Approved for delivery","2017-12-15",null,null,2]
["Construction and the built environment","ST0271","Steel fixer","No",null,"Approved for delivery","2017-05-16",null,null,2]
["Engineering and manufacturing","ST0014","Aviation maintenance mechanic - military","No",null,"Approved for delivery","2016-09-15",null,null,2]
["Engineering and manufacturing","ST0199","Food and drink process operator","No",null,"Approved for delivery","2016-08-25",null,null,2]
["Engineering and manufacturing","ST0358","Non-destructive testing (NDT) operator","No",null,"Approved for delivery","2016-08-22",null,null,2]
["Construction and the built environment","ST0051","Highway electrical maintenance and installation operative","No",null,"Approved for delivery","2016-08-19",null,null,2]
["Health and science","ST0216","Healthcare support worker","No",null,"Approved for delivery","2016-05-19",null,null,2]
["Health and science","ST0218","Healthcare science assistant","No",null,"Approved for delivery","2016-05-10",null,null,2]
["Engineering and manufacturing","ST0349","General welder (arc processes)","No",null,"Approved for delivery","2016-04-27",null,null,2]
["Construction and the built environment","ST0065","Building services engineering installer","No",null,"Approved for delivery","2016-03-24",null,null,2]
["Engineering and manufacturing","ST0204","Gas network operative","No",null,"Approved for delivery","2015-10-22",null,null,2]
["Engineering and manufacturing","ST0290","Nuclear health physics monitor","No",null,"Approved for delivery","2015-09-03",null,null,2]
["Construction and the built environment","ST0158","Dual fuel smart meter installer","No",null,"Approved for delivery","2015-08-27",null,null,2]
["Construction and the built environment","ST0171","Property maintenance operative","No",null,"Approved for delivery","2015-03-26",null,null,2]
["Engineering and manufacturing","ST0871","Power support operative","No",null,"In development","TBC",null,null,2]
["Construction and the built environment","ST0821","Thatcher","No",null,"In development","TBC",null,null,2]
["Construction and the built environment","ST0985","Lead traffic management operative","No",null,"In development","TBC",null,null,2]
["Construction and the built environment","ST0980","Fitted interiors installer","No",null,"In development","TBC",null,null,2]
["Engineering and manufacturing","ST0977","Furniture finisher","No",null,"In development","TBC",null,null,2]
["Construction and the built environment","ST1342","Steeplejack","No",null,"In development","TBC",null,null,2]
["Engineering and manufacturing","ST1348","Sewerage network operative","No",null,"In development","TBC",null,null,2]
["Engineering and manufacturing","ST0962 ALL","Print operative","Yes","Pre-Press Operative;Press Operative;Post-Press Operative","Approved for delivery","2021-07-22",null,null,2]
["Construction and the built environment","ST0442 ALL","Stonemason","Yes","Banker Stonemason;Interior Stone Fixer;Exterior Stone Fixer;Memorial Stonemason;Stone Facade Preservation;Heritage Stonemason","Approved for delivery","2021-06-28",null,null,2]
["Engineering and manufacturing",{"$f":"Table1[[#This Row],[Reference]]&\" ALL\"","v":"ST0876 ALL"},"Water process operative","Yes","Clean water process operative;Waste water process operative","Approved for delivery","2020-08-24",null,null,2]
["Engineering and manufacturing",{"$f":"Table1[[#This Row],[Reference]]&\" ALL\"","v":"ST0898 ALL"},"Water network operative","Yes","Clean water network operative;Waste water network operative","Approved for delivery","2020-06-17",null,null,2]
["Engineering and manufacturing",{"$f":"Table1[[#This Row],[Reference]]&\" ALL\"","v":"ST0251 ALL"},"Stairlift, platform lift, service lift electromechanic","Yes","Stairlift Installation;Stairlift Service & Repair;Lifting Platform Installation;Lifting Platform Service & Repair;Service Lift Installation;Service Lift Service & Repair;Stairlift Installation;Stairlift Service & Repair;Lifting Platform Installation;Lifting Platform Service & Repair;Service Lift Installation;Service Lift Service & Repair","Approved for delivery","2020-03-19",null,null,2]
["Construction and the built environment",{"$f":"Table1[[#This Row],[Reference]]&\" ALL\"","v":"ST0096 ALL"},"Plasterer","Yes","Solid Plastering;Fibrous Plastering","Approved for delivery","2019-12-18",null,null,2]
["Construction and the built environment",{"$f":"Table1[[#This Row],[Reference]]&\" ALL\"","v":"ST0270 ALL"},"Roofer","Yes","Roof Slater & Tiler;Waterproof Membranes Installer;Roof Sheeter & Cladder;Roof Slater & Tiler;Waterproof Membranes Installer;Roof Sheeter & Cladder","Approved for delivery","2019-09-30",null,null,2]
["Engineering and manufacturing",{"$f":"Table1[[#This Row],[Reference]]&\" ALL\"","v":"ST0420 ALL"},"Lean manufacturing operative","Yes","Inspection/Quality;Logistics/Material;Production Processing/Finishing;Production/Assembly;Inspection/Quality;Logistics/Material;Production Processing/Finishing;Production/Assembly","Approved for delivery","2019-07-25",null,null,2]
["Construction and the built environment",{"$f":"Table1[[#This Row],[Reference]]&\" ALL\"","v":"ST0265 ALL"},"Construction assembly and installation operative","Yes","Concrete ;Timber;Relocateable modular and portable;Permanent modular","Approved for delivery","2019-07-03",null,null,2]
["Construction and the built environment",{"$f":"Table1[[#This Row],[Reference]]&\" ALL\"","v":"ST0388 ALL"},"Interior systems installer","Yes","Drylining Systems;Suspended Ceiling & Partitioning Systems","Approved for delivery","2019-07-03",null,null,2]
["Construction and the built environment",{"$f":"Table1[[#This Row],[Reference]]&\" ALL\"","v":"ST0504 ALL"},"Floorlayer","Yes","Textile and Resilient Floorlayers;Wood Floorlayers;Textile and Resilient Floorlayers;Wood Floorlayers","Approved for delivery","2018-11-08",null,null,2]
["Engineering and manufacturing",{"$f":"Table1[[#This Row],[Reference]]&\" ALL\"","v":"ST0537 ALL"},"Engineering operative","Yes","Engineering Operatives Working Within a Maintenance Role;Engineering Operatives Working Within a Mechanical Manufacturing Engineering Role;Engineering Operatives Working Within an Electrical & Electronic Engineering Role;Engineering Operatives Working Within a Fabrication Role;Engineering Operatives Working Within a Materials, Processing or Finishing Role;Engineering Operatives Working Within a Technical Support Role;Engineering Operatives Working Within a Maintenance Role;Engineering Operatives Working Within a Mechanical Manufacturing Engineering Role;Engineering Operatives Working Within an Electrical & Electronic Engineering Role;Engineering Operatives Working Within a Fabrication Role;Engineering Operatives Working Within a Materials, Processing or Finishing Role;Engineering Operatives Working Within a Technical Support Role","Approved for delivery","2018-09-24",null,null,2]
["Engineering and manufacturing",{"$f":"Table1[[#This Row],[Reference]]&\" ALL\"","v":"ST0507 ALL"},"Metal recycling general operative","Yes","end-of-life vehicles operative;weighbridge operative;material handler (specialist equipment) operative;material classification operative;weee waste electrical and electronic equipment operative;end-of-life vehicles operative;weighbridge operative;material handler (specialist equipment) operative;material classification operative;weee waste electrical and electronic equipment operative","Approved for delivery","2018-08-07",null,null,2]
["Construction and the built environment",{"$f":"Table1[[#This Row],[Reference]]&\" ALL\"","v":"ST0264 ALL"},"Carpentry and joinery","Yes","Site Carpenter;Architectural Joiner","Approved for delivery","2018-02-27",null,null,2]
["Engineering and manufacturing",{"$f":"Table1[[#This Row],[Reference]]&\" ALL\"","v":"ST0291 ALL"},"Nuclear operative","Yes","Nuclear Decommissioning Operative;Nuclear Process Operative;Nuclear Decommissioning Operative;Nuclear Process Operative","Approved for delivery","2018-01-22",null,null,2]
["Construction and the built environment",{"$f":"Table1[[#This Row],[Reference]]&\" ALL\"","v":"ST0267 ALL"},"Lifting technician","Yes","Crawler Crane Operator;Mobile Crane Operator;Tower Crane Operator;Crawler Crane Operator;Mobile Crane Operator;Tower Crane Operator","Approved for delivery","2017-12-01",null,null,2]
["Engineering and manufacturing",{"$f":"Table1[[#This Row],[Reference]]&\" ALL\"","v":"ST0144 ALL"},"Mineral processing mobile and static plant operator","Yes","Mobile Plant;Static Plant;Mobile Plant;Static Plant","Approved for delivery","2017-06-06",null,null,2]
["Engineering and manufacturing",{"$f":"Table1[[#This Row],[Reference]]&\" ALL\"","v":"ST0203 ALL"},"Furniture manufacturer","Yes","Bed Manufacturer;Foam Convertor and Upholstery Cushion Interior Manufacturer;Furniture CNC Specialist;Furniture Finisher;Furniture Restorer;General Furniture Manufacturer;Modern Furniture Service Repairer;Modern Upholsterer;Wood Machinist;Furniture Installer;Bed Manufacturer;Foam Convertor and Upholstery Cushion Interior Manufacturer;Furniture CNC Specialist;Furniture Finisher;Furniture Restorer;General Furniture Manufacturer;Modern Furniture Service Repairer;Modern Upholsterer;Wood Machinist;Furniture Installer","Approved for delivery","2016-09-07",null,null,2]
["Engineering and manufacturing",{"$f":"Table1[[#This Row],[Reference]]&\" ALL\"","v":"ST0317 ALL"},"Rail engineering operative","Yes","Track;Electrification;Overhead Lines;Signalling;Telecoms;Traction & Rolling Stock (T&RS);Track;Electrification;Overhead Lines;Signalling;Telecoms;Traction & Rolling Stock (T&RS)","Approved for delivery","2016-04-19",null,null,2]
["Engineering and manufacturing",{"$f":"Table1[[#This Row],[Reference]]&\" \"&Table1[[#This Row],[Options]]","v":"ST0962 Pre-Press Operative"},"Print operative","Yes","Pre-Press Operative"]
["Engineering and manufacturing",{"$f":"Table1[[#This Row],[Reference]]&\" \"&Table1[[#This Row],[Options]]","v":"ST0962 Press Operative"},"Print operative","Yes","Press Operative"]
["Engineering and manufacturing",{"$f":"Table1[[#This Row],[Reference]]&\" \"&Table1[[#This Row],[Options]]","v":"ST0962 Post-Press Operative"},"Print operative","Yes","Post-Press Operative"]
["Construction and the built environment",{"$f":"Table1[[#This Row],[Reference]]&\" \"&Table1[[#This Row],[Options]]","v":"ST0442 Banker Stonemason"},"Stonemason","Yes","Banker Stonemason"]
["Construction and the built environment",{"$f":"Table1[[#This Row],[Reference]]&\" \"&Table1[[#This Row],[Options]]","v":"ST0442 Interior Stone Fixer"},"Stonemason","Yes","Interior Stone Fixer"]
["Construction and the built environment",{"$f":"Table1[[#This Row],[Reference]]&\" \"&Table1[[#This Row],[Options]]","v":"ST0442 Exterior Stone Fixer"},"Stonemason","Yes","Exterior Stone Fixer"]
["Construction and the built environment",{"$f":"Table1[[#This Row],[Reference]]&\" \"&Table1[[#This Row],[Options]]","v":"ST0442 Memorial Stonemason"},"Stonemason","Yes","Memorial Stonemason"]
["Construction and the built environment",{"$f":"Table1[[#This Row],[Reference]]&\" \"&Table1[[#This Row],[Options]]","v":"ST0442 Stone Facade Preservation"},"Stonemason","Yes","Stone Facade Preservation"]
["Construction and the built environment",{"$f":"Table1[[#This Row],[Reference]]&\" \"&Table1[[#This Row],[Options]]","v":"ST0442 Heritage Stonemason"},"Stonemason","Yes","Heritage Stonemason"]
["Engineering and manufacturing",{"$f":"Table1[[#This Row],[Reference]]&\" \"&Table1[[#This Row],[Options]]","v":"ST0876 Clean water process operative"},"Water process operative","Yes","Clean water process operative"]
["Engineering and manufacturing",{"$f":"Table1[[#This Row],[Reference]]&\" \"&Table1[[#This Row],[Options]]","v":"ST0876 Waste water process operative"},"Water process operative","Yes","Waste water process operative"]
["Engineering and manufacturing",{"$f":"Table1[[#This Row],[Reference]]&\" \"&Table1[[#This Row],[Options]]","v":"ST0898 Clean water network operative"},"Water network operative","Yes","Clean water network operative"]
["Engineering and manufacturing",{"$f":"Table1[[#This Row],[Reference]]&\" \"&Table1[[#This Row],[Options]]","v":"ST0898 Waste water network operative"},"Water network operative","Yes","Waste water network operative"]
["Engineering and manufacturing",{"$f":"Table1[[#This Row],[Reference]]&\" \"&Table1[[#This Row],[Options]]","v":"ST0251 Stairlift Installation"},"Stairlift, platform lift, service lift electromechanic","Yes","Stairlift Installation"]
["Engineering and manufacturing",{"$f":"Table1[[#This Row],[Reference]]&\" \"&Table1[[#This Row],[Options]]","v":"ST0251 Stairlift Service & Repair"},"Stairlift, platform lift, service lift electromechanic","Yes","Stairlift Service & Repair"]
["Engineering and manufacturing",{"$f":"Table1[[#This Row],[Reference]]&\" \"&Table1[[#This Row],[Options]]","v":"ST0251 Lifting Platform Installation"},"Stairlift, platform lift, service lift electromechanic","Yes","Lifting Platform Installation"]
["Engineering and manufacturing",{"$f":"Table1[[#This Row],[Reference]]&\" \"&Table1[[#This Row],[Options]]","v":"ST0251 Lifting Platform Service & Repair"},"Stairlift, platform lift, service lift electromechanic","Yes","Lifting Platform Service & Repair"]
["Engineering and manufacturing",{"$f":"Table1[[#This Row],[Reference]]&\" \"&Table1[[#This Row],[Options]]","v":"ST0251 Service Lift Installation"},"Stairlift, platform lift, service lift electromechanic","Yes","Service Lift Installation"]
["Engineering and manufacturing",{"$f":"Table1[[#This Row],[Reference]]&\" \"&Table1[[#This Row],[Options]]","v":"ST0251 Service Lift Service & Repair"},"Stairlift, platform lift, service lift electromechanic","Yes","Service Lift Service & Repair"]
["Engineering and manufacturing",{"$f":"Table1[[#This Row],[Reference]]&\" \"&Table1[[#This Row],[Options]]","v":"ST0251 Stairlift Installation"},"Stairlift, platform lift, service lift electromechanic","Yes","Stairlift Installation"]
["Engineering and manufacturing",{"$f":"Table1[[#This Row],[Reference]]&\" \"&Table1[[#This Row],[Options]]","v":"ST0251 Stairlift Service & Repair"},"Stairlift, platform lift, service lift electromechanic","Yes","Stairlift Service & Repair"]
["Engineering and manufacturing",{"$f":"Table1[[#This Row],[Reference]]&\" \"&Table1[[#This Row],[Options]]","v":"ST0251 Lifting Platform Installation"},"Stairlift, platform lift, service lift electromechanic","Yes","Lifting Platform Installation"]
["Engineering and manufacturing",{"$f":"Table1[[#This Row],[Reference]]&\" \"&Table1[[#This Row],[Options]]","v":"ST0251 Lifting Platform Service & Repair"},"Stairlift, platform lift, service lift electromechanic","Yes","Lifting Platform Service & Repair"]
["Engineering and manufacturing",{"$f":"Table1[[#This Row],[Reference]]&\" \"&Table1[[#This Row],[Options]]","v":"ST0251 Service Lift Installation"},"Stairlift, platform lift, service lift electromechanic","Yes","Service Lift Installation"]
["Engineering and manufacturing",{"$f":"Table1[[#This Row],[Reference]]&\" \"&Table1[[#This Row],[Options]]","v":"ST0251 Service Lift Service & Repair"},"Stairlift, platform lift, service lift electromechanic","Yes","Service Lift Service & Repair"]
["Construction and the built environment",{"$f":"Table1[[#This Row],[Reference]]&\" \"&Table1[[#This Row],[Options]]","v":"ST0096 Solid Plastering"},"Plasterer","Yes","Solid Plastering"]
["Construction and the built environment",{"$f":"Table1[[#This Row],[Reference]]&\" \"&Table1[[#This Row],[Options]]","v":"ST0096 Fibrous Plastering"},"Plasterer","Yes","Fibrous Plastering"]
["Construction and the built environment",{"$f":"Table1[[#This Row],[Reference]]&\" \"&Table1[[#This Row],[Options]]","v":"ST0270 Roof Slater & Tiler"},"Roofer","Yes","Roof Slater & Tiler"]
["Construction and the built environment",{"$f":"Table1[[#This Row],[Reference]]&\" \"&Table1[[#This Row],[Options]]","v":"ST0270 Waterproof Membranes Installer"},"Roofer","Yes","Waterproof Membranes Installer"]
["Construction and the built environment",{"$f":"Table1[[#This Row],[Reference]]&\" \"&Table1[[#This Row],[Options]]","v":"ST0270 Roof Sheeter & Cladder"},"Roofer","Yes","Roof Sheeter & Cladder"]
["Construction and the built environment",{"$f":"Table1[[#This Row],[Reference]]&\" \"&Table1[[#This Row],[Options]]","v":"ST0270 Roof Slater & Tiler"},"Roofer","Yes","Roof Slater & Tiler"]
["Construction and the built environment",{"$f":"Table1[[#This Row],[Reference]]&\" \"&Table1[[#This Row],[Options]]","v":"ST0270 Waterproof Membranes Installer"},"Roofer","Yes","Waterproof Membranes Installer"]
["Construction and the built environment",{"$f":"Table1[[#This Row],[Reference]]&\" \"&Table1[[#This Row],[Options]]","v":"ST0270 Roof Sheeter & Cladder"},"Roofer","Yes","Roof Sheeter & Cladder"]
["Engineering and manufacturing",{"$f":"Table1[[#This Row],[Reference]]&\" \"&Table1[[#This Row],[Options]]","v":"ST0420 Inspection/Quality"},"Lean manufacturing operative","Yes","Inspection/Quality"]
["Engineering and manufacturing",{"$f":"Table1[[#This Row],[Reference]]&\" \"&Table1[[#This Row],[Options]]","v":"ST0420 Logistics/Material"},"Lean manufacturing operative","Yes","Logistics/Material"]
["Engineering and manufacturing",{"$f":"Table1[[#This Row],[Reference]]&\" \"&Table1[[#This Row],[Options]]","v":"ST0420 Production Processing/Finishing"},"Lean manufacturing operative","Yes","Production Processing/Finishing"]
["Engineering and manufacturing",{"$f":"Table1[[#This Row],[Reference]]&\" \"&Table1[[#This Row],[Options]]","v":"ST0420 Production/Assembly"},"Lean manufacturing operative","Yes","Production/Assembly"]
["Engineering and manufacturing",{"$f":"Table1[[#This Row],[Reference]]&\" \"&Table1[[#This Row],[Options]]","v":"ST0420 Inspection/Quality"},"Lean manufacturing operative","Yes","Inspection/Quality"]
["Engineering and manufacturing",{"$f":"Table1[[#This Row],[Reference]]&\" \"&Table1[[#This Row],[Options]]","v":"ST0420 Logistics/Material"},"Lean manufacturing operative","Yes","Logistics/Material"]
["Engineering and manufacturing",{"$f":"Table1[[#This Row],[Reference]]&\" \"&Table1[[#This Row],[Options]]","v":"ST0420 Production Processing/Finishing"},"Lean manufacturing operative","Yes","Production Processing/Finishing"]
["Engineering and manufacturing",{"$f":"Table1[[#This Row],[Reference]]&\" \"&Table1[[#This Row],[Options]]","v":"ST0420 Production/Assembly"},"Lean manufacturing operative","Yes","Production/Assembly"]
["Construction and the built environment",{"$f":"Table1[[#This Row],[Reference]]&\" \"&Table1[[#This Row],[Options]]","v":"ST0265 Concrete "},"Construction assembly and installation operative","Yes","Concrete "]
["Construction and the built environment",{"$f":"Table1[[#This Row],[Reference]]&\" \"&Table1[[#This Row],[Options]]","v":"ST0265 Timber"},"Construction assembly and installation operative","Yes","Timber"]
["Construction and the built environment",{"$f":"Table1[[#This Row],[Reference]]&\" \"&Table1[[#This Row],[Options]]","v":"ST0265 Relocateable modular and portable"},"Construction assembly and installation operative","Yes","Relocateable modular and portable"]
["Construction and the built environment",{"$f":"Table1[[#This Row],[Reference]]&\" \"&Table1[[#This Row],[Options]]","v":"ST0265 Permanent modular"},"Construction assembly and installation operative","Yes","Permanent modular"]
["Construction and the built environment",{"$f":"Table1[[#This Row],[Reference]]&\" \"&Table1[[#This Row],[Options]]","v":"ST0388 Drylining Systems"},"Interior systems installer","Yes","Drylining Systems"]
["Construction and the built environment",{"$f":"Table1[[#This Row],[Reference]]&\" \"&Table1[[#This Row],[Options]]","v":"ST0388 Suspended Ceiling & Partitioning Systems"},"Interior systems installer","Yes","Suspended Ceiling & Partitioning Systems"]
["Construction and the built environment",{"$f":"Table1[[#This Row],[Reference]]&\" \"&Table1[[#This Row],[Options]]","v":"ST0504 Textile and Resilient Floorlayers"},"Floorlayer","Yes","Textile and Resilient Floorlayers"]
["Construction and the built environment",{"$f":"Table1[[#This Row],[Reference]]&\" \"&Table1[[#This Row],[Options]]","v":"ST0504 Wood Floorlayers"},"Floorlayer","Yes","Wood Floorlayers"]
["Construction and the built environment",{"$f":"Table1[[#This Row],[Reference]]&\" \"&Table1[[#This Row],[Options]]","v":"ST0504 Textile and Resilient Floorlayers"},"Floorlayer","Yes","Textile and Resilient Floorlayers"]
["Construction and the built environment",{"$f":"Table1[[#This Row],[Reference]]&\" \"&Table1[[#This Row],[Options]]","v":"ST0504 Wood Floorlayers"},"Floorlayer","Yes","Wood Floorlayers"]
["Engineering and manufacturing",{"$f":"Table1[[#This Row],[Reference]]&\" \"&Table1[[#This Row],[Options]]","v":"ST0537 Engineering Operatives Working Within a Maintenance Role"},"Engineering operative","Yes","Engineering Operatives Working Within a Maintenance Role"]
["Engineering and manufacturing",{"$f":"Table1[[#This Row],[Reference]]&\" \"&Table1[[#This Row],[Options]]","v":"ST0537 Engineering Operatives Working Within a Mechanical Manufacturing Engineering Role"},"Engineering operative","Yes","Engineering Operatives Working Within a Mechanical Manufacturing Engineering Role"]
["Engineering and manufacturing",{"$f":"Table1[[#This Row],[Reference]]&\" \"&Table1[[#This Row],[Options]]","v":"ST0537 Engineering Operatives Working Within an Electrical & Electronic Engineering Role"},"Engineering operative","Yes","Engineering Operatives Working Within an Electrical & Electronic Engineering Role"]
["Engineering and manufacturing",{"$f":"Table1[[#This Row],[Reference]]&\" \"&Table1[[#This Row],[Options]]","v":"ST0537 Engineering Operatives Working Within a Fabrication Role"},"Engineering operative","Yes","Engineering Operatives Working Within a Fabrication Role"]
["Engineering and manufacturing",{"$f":"Table1[[#This Row],[Reference]]&\" \"&Table1[[#This Row],[Options]]","v":"ST0537 Engineering Operatives Working Within a Materials, Processing or Finishing Role"},"Engineering operative","Yes","Engineering Operatives Working Within a Materials, Processing or Finishing Role"]
["Engineering and manufacturing",{"$f":"Table1[[#This Row],[Reference]]&\" \"&Table1[[#This Row],[Options]]","v":"ST0537 Engineering Operatives Working Within a Technical Support Role"},"Engineering operative","Yes","Engineering Operatives Working Within a Technical Support Role"]
["Engineering and manufacturing",{"$f":"Table1[[#This Row],[Reference]]&\" \"&Table1[[#This Row],[Options]]","v":"ST0537 Engineering Operatives Working Within a Maintenance Role"},"Engineering operative","Yes","Engineering Operatives Working Within a Maintenance Role"]
["Engineering and manufacturing",{"$f":"Table1[[#This Row],[Reference]]&\" \"&Table1[[#This Row],[Options]]","v":"ST0537 Engineering Operatives Working Within a Mechanical Manufacturing Engineering Role"},"Engineering operative","Yes","Engineering Operatives Working Within a Mechanical Manufacturing Engineering Role"]
["Engineering and manufacturing",{"$f":"Table1[[#This Row],[Reference]]&\" \"&Table1[[#This Row],[Options]]","v":"ST0537 Engineering Operatives Working Within an Electrical & Electronic Engineering Role"},"Engineering operative","Yes","Engineering Operatives Working Within an Electrical & Electronic Engineering Role"]
["Engineering and manufacturing",{"$f":"Table1[[#This Row],[Reference]]&\" \"&Table1[[#This Row],[Options]]","v":"ST0537 Engineering Operatives Working Within a Fabrication Role"},"Engineering operative","Yes","Engineering Operatives Working Within a Fabrication Role"]
["Engineering and manufacturing",{"$f":"Table1[[#This Row],[Reference]]&\" \"&Table1[[#This Row],[Options]]","v":"ST0537 Engineering Operatives Working Within a Materials, Processing or Finishing Role"},"Engineering operative","Yes","Engineering Operatives Working Within a Materials, Processing or Finishing Role"]
["Engineering and manufacturing",{"$f":"Table1[[#This Row],[Reference]]&\" \"&Table1[[#This Row],[Options]]","v":"ST0537 Engineering Operatives Working Within a Technical Support Role"},"Engineering operative","Yes","Engineering Operatives Working Within a Technical Support Role"]
["Engineering and manufacturing",{"$f":"Table1[[#This Row],[Reference]]&\" \"&Table1[[#This Row],[Options]]","v":"ST0507 end-of-life vehicles operative"},"Metal recycling general operative","Yes","end-of-life vehicles operative"]
["Engineering and manufacturing",{"$f":"Table1[[#This Row],[Reference]]&\" \"&Table1[[#This Row],[Options]]","v":"ST0507 weighbridge operative"},"Metal recycling general operative","Yes","weighbridge operative"]
["Engineering and manufacturing",{"$f":"Table1[[#This Row],[Reference]]&\" \"&Table1[[#This Row],[Options]]","v":"ST0507 material handler (specialist equipment) operative"},"Metal recycling general operative","Yes","material handler (specialist equipment) operative"]
["Engineering and manufacturing",{"$f":"Table1[[#This Row],[Reference]]&\" \"&Table1[[#This Row],[Options]]","v":"ST0507 material classification operative"},"Metal recycling general operative","Yes","material classification operative"]
["Engineering and manufacturing",{"$f":"Table1[[#This Row],[Reference]]&\" \"&Table1[[#This Row],[Options]]","v":"ST0507 weee waste electrical and electronic equipment operative"},"Metal recycling general operative","Yes","weee waste electrical and electronic equipment operative"]
["Engineering and manufacturing",{"$f":"Table1[[#This Row],[Reference]]&\" \"&Table1[[#This Row],[Options]]","v":"ST0507 end-of-life vehicles operative"},"Metal recycling general operative","Yes","end-of-life vehicles operative"]
["Engineering and manufacturing",{"$f":"Table1[[#This Row],[Reference]]&\" \"&Table1[[#This Row],[Options]]","v":"ST0507 weighbridge operative"},"Metal recycling general operative","Yes","weighbridge operative"]
["Engineering and manufacturing",{"$f":"Table1[[#This Row],[Reference]]&\" \"&Table1[[#This Row],[Options]]","v":"ST0507 material handler (specialist equipment) operative"},"Metal recycling general operative","Yes","material handler (specialist equipment) operative"]
["Engineering and manufacturing",{"$f":"Table1[[#This Row],[Reference]]&\" \"&Table1[[#This Row],[Options]]","v":"ST0507 material classification operative"},"Metal recycling general operative","Yes","material classification operative"]
["Engineering and manufacturing",{"$f":"Table1[[#This Row],[Reference]]&\" \"&Table1[[#This Row],[Options]]","v":"ST0507 weee waste electrical and electronic equipment operative"},"Metal recycling general operative","Yes","weee waste electrical and electronic equipment operative"]
["Construction and the built environment",{"$f":"Table1[[#This Row],[Reference]]&\" \"&Table1[[#This Row],[Options]]","v":"ST0264 Site Carpenter"},"Carpentry and joinery","Yes","Site Carpenter"]
["Construction and the built environment",{"$f":"Table1[[#This Row],[Reference]]&\" \"&Table1[[#This Row],[Options]]","v":"ST0264 Architectural Joiner"},"Carpentry and joinery","Yes","Architectural Joiner"]
["Engineering and manufacturing",{"$f":"Table1[[#This Row],[Reference]]&\" \"&Table1[[#This Row],[Options]]","v":"ST0291 Nuclear Decommissioning Operative"},"Nuclear operative","Yes","Nuclear Decommissioning Operative"]
["Engineering and manufacturing",{"$f":"Table1[[#This Row],[Reference]]&\" \"&Table1[[#This Row],[Options]]","v":"ST0291 Nuclear Process Operative"},"Nuclear operative","Yes","Nuclear Process Operative"]
["Engineering and manufacturing",{"$f":"Table1[[#This Row],[Reference]]&\" \"&Table1[[#This Row],[Options]]","v":"ST0291 Nuclear Decommissioning Operative"},"Nuclear operative","Yes","Nuclear Decommissioning Operative"]
["Engineering and manufacturing",{"$f":"Table1[[#This Row],[Reference]]&\" \"&Table1[[#This Row],[Options]]","v":"ST0291 Nuclear Process Operative"},"Nuclear operative","Yes","Nuclear Process Operative"]
["Construction and the built environment",{"$f":"Table1[[#This Row],[Reference]]&\" \"&Table1[[#This Row],[Options]]","v":"ST0267 Crawler Crane Operator"},"Lifting technician","Yes","Crawler Crane Operator"]
["Construction and the built environment",{"$f":"Table1[[#This Row],[Reference]]&\" \"&Table1[[#This Row],[Options]]","v":"ST0267 Mobile Crane Operator"},"Lifting technician","Yes","Mobile Crane Operator"]
["Construction and the built environment",{"$f":"Table1[[#This Row],[Reference]]&\" \"&Table1[[#This Row],[Options]]","v":"ST0267 Tower Crane Operator"},"Lifting technician","Yes","Tower Crane Operator"]
["Construction and the built environment",{"$f":"Table1[[#This Row],[Reference]]&\" \"&Table1[[#This Row],[Options]]","v":"ST0267 Crawler Crane Operator"},"Lifting technician","Yes","Crawler Crane Operator"]
["Construction and the built environment",{"$f":"Table1[[#This Row],[Reference]]&\" \"&Table1[[#This Row],[Options]]","v":"ST0267 Mobile Crane Operator"},"Lifting technician","Yes","Mobile Crane Operator"]
["Construction and the built environment",{"$f":"Table1[[#This Row],[Reference]]&\" \"&Table1[[#This Row],[Options]]","v":"ST0267 Tower Crane Operator"},"Lifting technician","Yes","Tower Crane Operator"]
["Engineering and manufacturing",{"$f":"Table1[[#This Row],[Reference]]&\" \"&Table1[[#This Row],[Options]]","v":"ST0144 Mobile Plant"},"Mineral processing mobile and static plant operator","Yes","Mobile Plant"]
["Engineering and manufacturing",{"$f":"Table1[[#This Row],[Reference]]&\" \"&Table1[[#This Row],[Options]]","v":"ST0144 Static Plant"},"Mineral processing mobile and static plant operator","Yes","Static Plant"]
["Engineering and manufacturing",{"$f":"Table1[[#This Row],[Reference]]&\" \"&Table1[[#This Row],[Options]]","v":"ST0144 Mobile Plant"},"Mineral processing mobile and static plant operator","Yes","Mobile Plant"]
["Engineering and manufacturing",{"$f":"Table1[[#This Row],[Reference]]&\" \"&Table1[[#This Row],[Options]]","v":"ST0144 Static Plant"},"Mineral processing mobile and static plant operator","Yes","Static Plant"]
["Engineering and manufacturing",{"$f":"Table1[[#This Row],[Reference]]&\" \"&Table1[[#This Row],[Options]]","v":"ST0203 Bed Manufacturer"},"Furniture manufacturer","Yes","Bed Manufacturer"]
["Engineering and manufacturing",{"$f":"Table1[[#This Row],[Reference]]&\" \"&Table1[[#This Row],[Options]]","v":"ST0203 Foam Convertor and Upholstery Cushion Interior Manufacturer"},"Furniture manufacturer","Yes","Foam Convertor and Upholstery Cushion Interior Manufacturer"]
["Engineering and manufacturing",{"$f":"Table1[[#This Row],[Reference]]&\" \"&Table1[[#This Row],[Options]]","v":"ST0203 Furniture CNC Specialist"},"Furniture manufacturer","Yes","Furniture CNC Specialist"]
["Engineering and manufacturing",{"$f":"Table1[[#This Row],[Reference]]&\" \"&Table1[[#This Row],[Options]]","v":"ST0203 Furniture Finisher"},"Furniture manufacturer","Yes","Furniture Finisher"]
["Engineering and manufacturing",{"$f":"Table1[[#This Row],[Reference]]&\" \"&Table1[[#This Row],[Options]]","v":"ST0203 Furniture Restorer"},"Furniture manufacturer","Yes","Furniture Restorer"]
["Engineering and manufacturing",{"$f":"Table1[[#This Row],[Reference]]&\" \"&Table1[[#This Row],[Options]]","v":"ST0203 General Furniture Manufacturer"},"Furniture manufacturer","Yes","General Furniture Manufacturer"]
["Engineering and manufacturing",{"$f":"Table1[[#This Row],[Reference]]&\" \"&Table1[[#This Row],[Options]]","v":"ST0203 Modern Furniture Service Repairer"},"Furniture manufacturer","Yes","Modern Furniture Service Repairer"]
["Engineering and manufacturing",{"$f":"Table1[[#This Row],[Reference]]&\" \"&Table1[[#This Row],[Options]]","v":"ST0203 Modern Upholsterer"},"Furniture manufacturer","Yes","Modern Upholsterer"]
["Engineering and manufacturing",{"$f":"Table1[[#This Row],[Reference]]&\" \"&Table1[[#This Row],[Options]]","v":"ST0203 Wood Machinist"},"Furniture manufacturer","Yes","Wood Machinist"]
["Engineering and manufacturing",{"$f":"Table1[[#This Row],[Reference]]&\" \"&Table1[[#This Row],[Options]]","v":"ST0203 Furniture Installer"},"Furniture manufacturer","Yes","Furniture Installer"]
["Engineering and manufacturing",{"$f":"Table1[[#This Row],[Reference]]&\" \"&Table1[[#This Row],[Options]]","v":"ST0203 Bed Manufacturer"},"Furniture manufacturer","Yes","Bed Manufacturer"]
["Engineering and manufacturing",{"$f":"Table1[[#This Row],[Reference]]&\" \"&Table1[[#This Row],[Options]]","v":"ST0203 Foam Convertor and Upholstery Cushion Interior Manufacturer"},"Furniture manufacturer","Yes","Foam Convertor and Upholstery Cushion Interior Manufacturer"]
["Engineering and manufacturing",{"$f":"Table1[[#This Row],[Reference]]&\" \"&Table1[[#This Row],[Options]]","v":"ST0203 Furniture CNC Specialist"},"Furniture manufacturer","Yes","Furniture CNC Specialist"]
["Engineering and manufacturing",{"$f":"Table1[[#This Row],[Reference]]&\" \"&Table1[[#This Row],[Options]]","v":"ST0203 Furniture Finisher"},"Furniture manufacturer","Yes","Furniture Finisher"]
["Engineering and manufacturing",{"$f":"Table1[[#This Row],[Reference]]&\" \"&Table1[[#This Row],[Options]]","v":"ST0203 Furniture Restorer"},"Furniture manufacturer","Yes","Furniture Restorer"]
["Engineering and manufacturing",{"$f":"Table1[[#This Row],[Reference]]&\" \"&Table1[[#This Row],[Options]]","v":"ST0203 General Furniture Manufacturer"},"Furniture manufacturer","Yes","General Furniture Manufacturer"]
["Engineering and manufacturing",{"$f":"Table1[[#This Row],[Reference]]&\" \"&Table1[[#This Row],[Options]]","v":"ST0203 Modern Furniture Service Repairer"},"Furniture manufacturer","Yes","Modern Furniture Service Repairer"]
["Engineering and manufacturing",{"$f":"Table1[[#This Row],[Reference]]&\" \"&Table1[[#This Row],[Options]]","v":"ST0203 Modern Upholsterer"},"Furniture manufacturer","Yes","Modern Upholsterer"]
["Engineering and manufacturing",{"$f":"Table1[[#This Row],[Reference]]&\" \"&Table1[[#This Row],[Options]]","v":"ST0203 Wood Machinist"},"Furniture manufacturer","Yes","Wood Machinist"]
["Engineering and manufacturing",{"$f":"Table1[[#This Row],[Reference]]&\" \"&Table1[[#This Row],[Options]]","v":"ST0203 Furniture Installer"},"Furniture manufacturer","Yes","Furniture Installer"]
["Engineering and manufacturing",{"$f":"Table1[[#This Row],[Reference]]&\" \"&Table1[[#This Row],[Options]]","v":"ST0317 Track"},"Rail engineering operative","Yes","Track"]
["Engineering and manufacturing",{"$f":"Table1[[#This Row],[Reference]]&\" \"&Table1[[#This Row],[Options]]","v":"ST0317 Electrification"},"Rail engineering operative","Yes","Electrification"]
["Engineering and manufacturing",{"$f":"Table1[[#This Row],[Reference]]&\" \"&Table1[[#This Row],[Options]]","v":"ST0317 Overhead Lines"},"Rail engineering operative","Yes","Overhead Lines"]
["Engineering and manufacturing",{"$f":"Table1[[#This Row],[Reference]]&\" \"&Table1[[#This Row],[Options]]","v":"ST0317 Signalling"},"Rail engineering operative","Yes","Signalling"]
["Engineering and manufacturing",{"$f":"Table1[[#This Row],[Reference]]&\" \"&Table1[[#This Row],[Options]]","v":"ST0317 Telecoms"},"Rail engineering operative","Yes","Telecoms"]
["Engineering and manufacturing",{"$f":"Table1[[#This Row],[Reference]]&\" \"&Table1[[#This Row],[Options]]","v":"ST0317 Traction & Rolling Stock (T&RS)"},"Rail engineering operative","Yes","Traction & Rolling Stock (T&RS)"]
["Engineering and manufacturing",{"$f":"Table1[[#This Row],[Reference]]&\" \"&Table1[[#This Row],[Options]]","v":"ST0317 Track"},"Rail engineering operative","Yes","Track"]
["Engineering and manufacturing",{"$f":"Table1[[#This Row],[Reference]]&\" \"&Table1[[#This Row],[Options]]","v":"ST0317 Electrification"},"Rail engineering operative","Yes","Electrification"]
["Engineering and manufacturing",{"$f":"Table1[[#This Row],[Reference]]&\" \"&Table1[[#This Row],[Options]]","v":"ST0317 Overhead Lines"},"Rail engineering operative","Yes","Overhead Lines"]
["Engineering and manufacturing",{"$f":"Table1[[#This Row],[Reference]]&\" \"&Table1[[#This Row],[Options]]","v":"ST0317 Signalling"},"Rail engineering operative","Yes","Signalling"]
["Engineering and manufacturing",{"$f":"Table1[[#This Row],[Reference]]&\" \"&Table1[[#This Row],[Options]]","v":"ST0317 Telecoms"},"Rail engineering operative","Yes","Telecoms"]
["Engineering and manufacturing",{"$f":"Table1[[#This Row],[Reference]]&\" \"&Table1[[#This Row],[Options]]","v":"ST0317 Traction & Rolling Stock (T&RS)"},"Rail engineering operative","Yes","Traction & Rolling Stock (T&RS)"]